fUST/lending_fUST_20241119
["ID","MTS","AMOUNT","RATE_DAILY","PERIOD"]
[342521473,1731955646523,-500.0,0.00019883,2]
[342521474,1731955646553,-500.0,0.00019883,2]
[342521475,1731955646584,-500.0,0.00019883,2]
[342521476,1731955646608,-304.04716814,0.00019883,2]
[342521477,1731955646639,-505.97879187,0.00019883,2]
[342521478,1731955646666,-500.0,0.00019884,2]
[342521479,1731955646694,-522.04,0.00019884,2]
[342521480,1731955646721,-500.0,0.00019884,2]
[342521481,1731955646756,-500.0,0.00019884,2]
[342521482,1731955646783,-500.0,0.00019884,2]
[342521483,1731955646816,-500.0,0.00019884,2]
[342521484,1731955646845,-500.0,0.00019884,2]
[342521485,1731955646873,-500.0,0.00019884,2]
[342521486,1731955646900,-500.0,0.00019884,2]
[342521487,1731955646925,-500.0,0.00019884,2]
[342521488,1731955646953,-500.0,0.00019884,2]
[342521489,1731955646980,-500.0,0.00019884,2]
[342521490,1731955647009,-500.0,0.00019884,2]
[342521491,1731955647034,-500.0,0.00019884,2]
[342521492,1731955647058,-7015.625,0.0002,2]
[342521493,1731955647082,-330.77676486,0.00020058,2]
[342521494,1731955647107,-500.0,0.00020157,2]
[342521495,1731955647132,-500.0,0.00020157,2]
[342521496,1731955647158,-556.93,0.00020157,2]
[342521497,1731955647185,-500.0,0.00020157,2]
[342521498,1731955647210,-500.0,0.00020157,2]
[342521499,1731955647247,-500.0,0.00020157,2]
[342521500,1731955647290,-500.0,0.00020157,2]
[342521501,1731955647320,-500.0,0.00020157,2]
[342521502,1731955647346,-500.0,0.00020157,2]
[342521503,1731955647369,-500.0,0.00020157,2]
[342521504,1731955647392,-500.0,0.00020157,2]
[342521505,1731955647416,-500.0,0.00020157,2]
[342521506,1731955647442,-732.79,0.00020157,2]
[342521507,1731955647468,-171.29017824,0.00020157,2]
[342521508,1731955647494,-307.76891126,0.00020157,2]
[342521509,1731955647516,-500.0,0.00020157,2]
[342521510,1731955647540,-500.0,0.00020157,2]
[342521511,1731955647565,-500.0,0.00020157,2]
[342521512,1731955647592,-500.0,0.00020157,2]
[342521513,1731955647617,-155.21212702,0.00020157,2]
[342521514,1731955647642,-500.0,0.00020157,2]
[342521515,1731955647664,-461.99647424,0.00020157,2]
[342521516,1731955647689,-500.0,0.00020157,2]
[342521517,1731955647713,-500.00000001,0.00020157,2]
[342521518,1731955647738,-548.21,0.00020157,2]
[342521519,1731955647769,-391.88,0.00020157,2]
[342521520,1731955647797,-500.0,0.00020157,2]
[342521521,1731955647830,-500.0,0.00020157,2]
[342521522,1731955647855,-500.0,0.00020157,2]
[342521523,1731955647879,-552.24049097,0.00020157,2]
[342521524,1731955647903,-423.19,0.00020157,2]
[342521525,1731955647925,-338.94,0.00020157,2]
[342521526,1731955647950,-500.0,0.00020157,2]
[342521527,1731955647974,-230.32,0.00020157,2]
[342521528,1731955648004,-500.0,0.00020157,2]
[342521529,1731955648030,-500.0,0.00020157,2]
[342521530,1731955648054,-500.0,0.00020158,2]
[342521531,1731955648078,-500.0,0.00020158,2]
[342521532,1731955648103,-184.90555935,0.00020158,2]
[342521533,1731955648127,-500.0,0.00020158,2]
[342521534,1731955648152,-500.0,0.00020158,2]
[342521535,1731955648176,-500.0,0.00020158,2]
[342521536,1731955648202,-500.0,0.00020158,2]
[342521537,1731955648227,-500.0,0.00020158,2]
[342521538,1731955648257,-500.0,0.00020158,2]
[342521539,1731955648282,-176.71,0.00020158,2]
[342521540,1731955648309,-500.0,0.00020158,2]
[342521541,1731955648548,-447.94,0.00020158,2]
[342521542,1731955648581,-592.53965793,0.00020158,2]
[342521543,1731955648604,-500.0,0.00020158,2]
[342521544,1731955648625,-500.0,0.00020158,2]
[342521545,1731955648663,-500.0,0.00020158,2]
[342521546,1731955648693,-500.0,0.00020158,2]
[342521547,1731955648716,-500.0,0.00020158,2]
[342521548,1731955648740,-500.0,0.00020158,2]
[342521549,1731955648763,-500.0,0.00020158,2]
[342521550,1731955648786,-1261.1,0.00020158,2]
[342521551,1731955648811,-500.0,0.00020158,2]
[342521552,1731955648832,-500.0,0.00020158,2]
[342521553,1731955648855,-500.0,0.00020158,2]
[342521554,1731955648876,-500.0,0.00020158,2]
[342521555,1731955648897,-500.0,0.00020158,2]
[342521556,1731955648918,-500.0,0.00020158,2]
[342521557,1731955648939,-500.0,0.00020158,2]
[342521558,1731955648960,-500.0,0.00020158,2]
[342521559,1731955648981,-500.0,0.00020158,2]
[342521560,1731955649004,-500.0,0.00020158,2]
[342521561,1731955649025,-3000.0,0.00020229,2]
[342521562,1731955649046,-175.32,0.00020431,2]
[342521563,1731955649069,-500.0,0.00020431,2]
[342521564,1731955649094,-556.93,0.00020431,2]
[342521565,1731955649116,-500.0,0.00020431,2]
[342521566,1731955649137,-500.0,0.00020431,2]
[342521567,1731955649162,-732.79,0.00020431,2]
[342521568,1731955649185,-500.0,0.00020431,2]
[342521569,1731955649210,-194.78,0.00020431,2]
[342521570,1731955649234,-500.0,0.00020431,2]
[342521571,1731955649266,-449.18,0.00020431,2]
[342521572,1731955649291,-389.53,0.00020431,2]
[342521573,1731955649316,-147.0813151,0.00020431,2]
[342521586,1731955832138,-188.229687,0.00013973,2]
[342521587,1731955832152,-247.69,0.000168,2]
[342521588,1731955832163,-16.585313,0.00018396,2]
[342521589,1731955832175,-151.2749485,0.00018396,2]
[342521590,1731955832184,-300.0,0.0001894,2]
[342521591,1731955832194,-274.7250515,0.00018942,2]
[342521691,1731955839622,-9183.65198921,0.00018942,2]
[342521693,1731955839634,-337.86699457,0.00018942,2]
[342521749,1731955841606,-7452.70917019,0.00018942,2]
[342521771,1731955842768,-259.6293969,0.00018942,2]
[342521838,1731955843446,-873.65652873,0.00018942,2]
[342521840,1731955843458,-6517.7608689,0.00018942,2]
[342521842,1731955843467,-1022.6443953,0.00018978,2]
[342521844,1731955843477,-1980.47082623,0.00019783,2]
[342521968,1731955846241,-1242.1037862,0.00019783,2]
[342521971,1731955846978,-902.06434203,0.00019783,2]
[342521972,1731955846987,-235.47460341,0.00019883,2]
[342521973,1731955846997,-500.0,0.00019883,2]
[342521974,1731955847006,-577.05215995,0.00019883,2]
[342521975,1731955847015,-500.0,0.00019883,2]
[342521976,1731955847025,-500.0,0.00019883,2]
[342521977,1731955847035,-500.0,0.00019883,2]
[342521978,1731955847044,-500.0,0.00019883,2]
[342521979,1731955847053,-500.09084464,0.00019883,2]
[342521980,1731955847063,-500.0,0.00019883,2]
[342521981,1731955847073,-500.0,0.00019883,2]
[342521982,1731955847083,-200.92006502,0.00019883,2]
[342521983,1731955847093,-312.20654558,0.00019883,2]
[342521984,1731955847103,-500.0,0.00019883,2]
[342521985,1731955847112,-500.0,0.00019883,2]
[342521986,1731955847122,-500.44331335,0.00019883,2]
[342521987,1731955847131,-500.0,0.00019883,2]
[342521988,1731955847141,-500.0,0.00019883,2]
[342521989,1731955847151,-515.53446826,0.00019883,2]
[342521990,1731955847163,-500.0,0.00019883,2]
[342521991,1731955847173,-500.0,0.00019883,2]
[342521992,1731955847183,-500.0,0.00019883,2]
[342521993,1731955847195,-500.0,0.00019883,2]
[342521994,1731955847210,-500.0,0.00019883,2]
[342521995,1731955847220,-500.0,0.00019883,2]
[342521996,1731955847229,-587.18,0.00019883,2]
[342521997,1731955847239,-500.0,0.00019883,2]
[342521998,1731955847248,-500.0,0.00019883,2]
[342521999,1731955847258,-592.46589916,0.00019883,2]
[342522000,1731955847267,-276.96922359,0.00019883,2]
[342522001,1731955847277,-500.0,0.00019883,2]
[342522002,1731955847287,-500.0,0.00019883,2]
[342522003,1731955847297,-200.0,0.00019883,2]
[342522004,1731955847306,-500.0,0.00019883,2]
[342522005,1731955847316,-500.0,0.00019883,2]
[342522006,1731955847327,-500.0,0.00019883,2]
[342522007,1731955847337,-491.13386687,0.00019883,2]
[342522008,1731955847347,-500.0,0.00019883,2]
[342522009,1731955847356,-500.0,0.00019883,2]
[342522010,1731955847365,-500.0,0.00019883,2]
[342522011,1731955847375,-500.0,0.00019883,2]
[342522012,1731955847385,-500.0,0.00019883,2]
[342522013,1731955847394,-500.0,0.00019883,2]
[342522014,1731955847404,-500.0,0.00019883,2]
[342522015,1731955847417,-500.0,0.00019883,2]
[342522016,1731955847427,-500.0,0.00019883,2]
[342522017,1731955847436,-500.0,0.00019883,2]
[342522018,1731955847445,-500.0,0.00019883,2]
[342522019,1731955847455,-500.0,0.00019883,2]
[342522020,1731955847464,-500.0,0.00019883,2]
[342522021,1731955847474,-500.0,0.00019883,2]
[342522022,1731955847484,-1156.01,0.00019883,2]
[342522023,1731955847493,-500.0,0.00019883,2]
[342522024,1731955847502,-500.0,0.00019883,2]
[342522025,1731955847513,-500.0,0.00019883,2]
[342522026,1731955847523,-500.0,0.00019883,2]
[342522027,1731955847532,-127.95466814,0.00019883,2]
[342522044,1731956699372,-40000.0,0.00019,60]
[342523355,1731956946132,-178.818202,0.00013973,2]
[342523356,1731956946154,-150.0,0.000169,2]
[342523357,1731956946176,-142.32553764,0.00018096,2]
[342523358,1731956950117,-157.67446236,0.00018096,2]
[342523359,1731956950141,-457.33346797,0.00018097,2]
[342523360,1731956950164,-500.0,0.00018097,2]
[342523361,1731956950186,-775.07,0.00018097,2]
[342523362,1731956950215,-500.0,0.00018097,2]
[342523363,1731956950238,-500.0,0.00018097,2]
[342523364,1731956950260,-500.0,0.00018097,2]
[342523365,1731956950282,-500.0,0.00018097,2]
[342523366,1731956950307,-327.21050582,0.00018097,2]
[342523367,1731956955114,-172.78949418,0.00018097,2]
[342523368,1731956955137,-500.0,0.00018097,2]
[342523369,1731956955159,-500.0,0.00018097,2]
[342523370,1731956955182,-500.0,0.00018097,2]
[342523371,1731956955204,-24900.0,0.00018098,2]
[342523372,1731956955227,-500.0,0.00018371,2]
[342523373,1731956955249,-775.07,0.00018371,2]
[342523374,1731956955270,-500.0,0.00018371,2]
[342523375,1731956955309,-500.0,0.00018371,2]
[342523376,1731956955334,-500.0,0.00018371,2]
[342523377,1731956955357,-500.0,0.00018371,2]
[342523378,1731956955378,-500.0,0.00018371,2]
[342523379,1731956955399,-500.0,0.00018371,2]
[342523380,1731956955421,-500.0,0.00018371,2]
[342523381,1731956955444,-500.0,0.00018371,2]
[342523382,1731956955466,-500.0,0.00018645,2]
[342523383,1731956955488,-775.07,0.00018645,2]
[342523384,1731956955509,-500.0,0.00018645,2]
[342523385,1731956955533,-500.0,0.00018645,2]
[342523386,1731956955556,-500.0,0.00018645,2]
[342523387,1731956955577,-500.0,0.00018645,2]
[342523388,1731956955599,-500.0,0.00018645,2]
[342523389,1731956955620,-500.0,0.00018645,2]
[342523390,1731956955642,-500.0,0.00018645,2]
[342523391,1731956955665,-500.0,0.00018919,2]
[342523392,1731956955687,-775.07,0.00018919,2]
[342523393,1731956955708,-500.0,0.00018919,2]
[342523394,1731956955730,-500.0,0.00018919,2]
[342523395,1731956955752,-500.0,0.00018919,2]
[342523396,1731956955773,-500.0,0.00018919,2]
[342523397,1731956955795,-500.0,0.00018919,2]
[342523398,1731956955824,-621.6,0.00018919,2]
[342523399,1731956955848,-500.0,0.00018919,2]
[342523400,1731956955872,-757.83421799,0.00018999,2]
[342523401,1731956955895,-500.0,0.00018999,2]
[342523402,1731956955918,-500.0,0.00018999,2]
[342523403,1731956955940,-500.0,0.00018999,2]
[342523404,1731956955963,-500.0,0.00018999,2]
[342523405,1731956955984,-500.0,0.00018999,2]
[342523406,1731956956004,-500.0,0.00018999,2]
[342523407,1731956956027,-362.31,0.00018999,2]
[342523408,1731956956054,-498.3,0.00018999,2]
[342523409,1731956956074,-500.0,0.00018999,2]
[342523410,1731956956097,-500.0,0.00018999,2]
[342523411,1731956956120,-176.44507188,0.00018999,2]
[342523412,1731956966115,-323.55492812,0.00018999,2]
[342523413,1731956966138,-500.0,0.00018999,2]
[342523414,1731956966162,-360.62806431,0.00018999,2]
[342523415,1731956966185,-500.0,0.00018999,2]
[342523416,1731956966209,-306.25274308,0.00018999,2]
[342523509,1731957033401,-150.0,0.000169,2]
[342523510,1731957033411,-593.32,0.00018097,2]
[342523511,1731957033422,-500.0,0.00018097,2]
[342523512,1731957033437,-500.0,0.00018097,2]
[342523513,1731957033455,-500.0,0.00018371,2]
[342523514,1731957033468,-500.0,0.00018371,2]
[342523515,1731957033482,-500.0,0.00018645,2]
[342523516,1731957033497,-500.0,0.00018645,2]
[342523517,1731957033511,-300.0,0.00018918,2]
[342523518,1731957033524,-500.0,0.00018919,2]
[342523519,1731957033536,-500.0,0.00018919,2]
[342523520,1731957033548,-193.74725692,0.00018999,2]
[342523521,1731957033561,-500.0,0.00018999,2]
[342523522,1731957033574,-472.18817752,0.00018999,2]
[342523523,1731957033587,-500.0,0.00018999,2]
[342523524,1731957033599,-500.0,0.00018999,2]
[342523525,1731957033613,-202.61381457,0.00018999,2]
[342523526,1731957033626,-303.47,0.00018999,2]
[342523527,1731957033639,-500.0,0.00018999,2]
[342523528,1731957033653,-500.0,0.00018999,2]
[342523529,1731957033667,-500.0,0.00018999,2]
[342523530,1731957033680,-500.0,0.00018999,2]
[342523531,1731957033693,-500.0,0.00018999,2]
[342523532,1731957033714,-500.0,0.00018999,2]
[342523533,1731957033728,-497.38590349,0.00018999,2]
[342523534,1731957033741,-500.0,0.00018999,2]
[342523535,1731957033755,-503.78,0.00018999,2]
[342523536,1731957033769,-583.57423648,0.00018999,2]
[342523537,1731957033783,-500.0,0.00018999,2]
[342523538,1731957033796,-374.41797256,0.00018999,2]
[342523539,1731957033809,-234.94245814,0.00018999,2]
[342523540,1731957033822,-500.0,0.00018999,2]
[342523541,1731957033834,-500.0,0.00018999,2]
[342523542,1731957033847,-500.0,0.00018999,2]
[342523543,1731957033860,-544.47,0.00018999,2]
[342523544,1731957033874,-500.0,0.00018999,2]
[342523545,1731957033887,-500.0,0.00018999,2]
[342523546,1731957033900,-582.25,0.00018999,2]
[342523547,1731957033913,-500.0,0.00018999,2]
[342523548,1731957033927,-500.0,0.00018999,2]
[342523549,1731957033942,-500.0,0.00018999,2]
[342523550,1731957033955,-500.0,0.00018999,2]
[342523551,1731957033966,-500.0,0.00018999,2]
[342523552,1731957033977,-500.0,0.00018999,2]
[342523553,1731957033989,-639.24,0.00018999,2]
[342523554,1731957034001,-500.0,0.00018999,2]
[342523555,1731957034012,-500.0,0.00018999,2]
[342523556,1731957034024,-500.0,0.00018999,2]
[342523557,1731957034036,-500.0,0.00018999,2]
[342523558,1731957034050,-500.0,0.00018999,2]
[342523559,1731957034064,-606.36332905,0.00018999,2]
[342523560,1731957034076,-500.0,0.00018999,2]
[342523561,1731957034089,-1107.84,0.00018999,2]
[342523562,1731957034104,-500.0,0.00018999,2]
[342523563,1731957034116,-430.56,0.00018999,2]
[342523564,1731957034130,-288.10162186,0.00018999,2]
[342523565,1731957034142,-500.0,0.00018999,2]
[342523566,1731957034156,-500.0,0.00018999,2]
[342523567,1731957034168,-500.0,0.00018999,2]
[342523568,1731957034181,-500.0,0.00018999,2]
[342523569,1731957034198,-500.0,0.00018999,2]
[342523570,1731957034210,-389.09,0.00018999,2]
[342523571,1731957034224,-474.0,0.00018999,2]
[342523572,1731957034237,-500.0,0.00018999,2]
[342523573,1731957034249,-500.0,0.00018999,2]
[342523574,1731957034260,-500.0,0.00018999,2]
[342523575,1731957034272,-500.0,0.00018999,2]
[342523576,1731957034283,-500.0,0.00018999,2]
[342523577,1731957034295,-500.0,0.00018999,2]
[342523578,1731957034308,-500.0,0.00018999,2]
[342523579,1731957034320,-500.0,0.00018999,2]
[342523580,1731957034332,-524.95,0.00018999,2]
[342523581,1731957034345,-500.0,0.00018999,2]
[342523582,1731957034359,-1299.15767692,0.00019173,2]
[342523583,1731957034371,-163.278985,0.00019178,2]
[342523584,1731957034384,-165.424004,0.00019178,2]
[342523585,1731957034397,-505.222812,0.00019193,2]
[342523586,1731957034408,-775.07,0.00019193,2]
[342523587,1731957034418,-500.0,0.00019193,2]
[342523588,1731957034430,-500.0,0.00019193,2]
[342523589,1731957034442,-500.0,0.00019193,2]
[342523590,1731957034453,-500.0,0.00019193,2]
[342523591,1731957034466,-500.0,0.00019193,2]
[342523592,1731957034477,-500.0,0.00019193,2]
[342523593,1731957034488,-500.0,0.00019193,2]
[342523594,1731957034501,-500.0,0.00019193,2]
[342523595,1731957034512,-500.0,0.00019272,2]
[342523596,1731957034523,-500.0,0.00019272,2]
[342523597,1731957034535,-500.0,0.00019272,2]
[342523598,1731957034546,-500.0,0.00019273,2]
[342523599,1731957034556,-450.38,0.00019273,2]
[342523600,1731957034567,-500.0,0.00019273,2]
[342523601,1731957034579,-305.46,0.00019273,2]
[342523602,1731957034591,-617.21,0.00019273,2]
[342523603,1731957034603,-228.91,0.00019273,2]
[342523604,1731957034615,-500.0,0.00019273,2]
[342523605,1731957034627,-530.98,0.00019273,2]
[342523606,1731957034638,-205.19,0.00019273,2]
[342523607,1731957034649,-215.65,0.00019273,2]
[342523608,1731957034660,-199.91,0.00019273,2]
[342523609,1731957034674,-500.0,0.00019273,2]
[342523610,1731957034685,-257.13,0.00019273,2]
[342523611,1731957034699,-500.0,0.00019273,2]
[342523612,1731957034710,-561.87,0.00019273,2]
[342523613,1731957034721,-1107.84,0.00019273,2]
[342523614,1731957034732,-500.0,0.00019273,2]
[342523615,1731957034744,-229.03,0.00019273,2]
[342523616,1731957034756,-617.45,0.00019273,2]
[342523617,1731957034768,-349.16,0.00019273,2]
[342523618,1731957034780,-504.89,0.00019273,2]
[342523619,1731957034792,-247.95,0.00019273,2]
[342523620,1731957034804,-500.0,0.00019273,2]
[342523621,1731957034815,-500.0,0.00019273,2]
[342523622,1731957034827,-500.0,0.00019273,2]
[342523623,1731957034838,-775.07,0.00019467,2]
[342523624,1731957034849,-246.8286849,0.00019467,2]
[342523625,1731957034861,-500.0,0.00019467,2]
[342523626,1731957034872,-500.0,0.00019467,2]
[342523627,1731957034883,-500.0,0.00019467,2]
[342523628,1731957034894,-367.87,0.00019467,2]
[342523629,1731957034906,-186.0,0.00019467,2]
[342523630,1731957034918,-363.8218864,0.00019467,2]
[342523631,1731957034930,-500.0,0.00019467,2]
[342523632,1731957034942,-500.0,0.00019547,2]
[342523633,1731957034952,-500.0,0.00019547,2]
[342523634,1731957034963,-500.0,0.00019547,2]
[342523635,1731957034975,-1107.84,0.00019547,2]
[342523636,1731957034986,-500.0,0.00019547,2]
[342523637,1731957034998,-338.49,0.00019547,2]
[342523638,1731957035009,-500.0,0.00019547,2]
[342523639,1731957035022,-775.07,0.00019741,2]
[342523640,1731957035035,-500.0,0.00019741,2]
[342523641,1731957035047,-500.0,0.00019741,2]
[342523642,1731957035061,-322.32,0.00019741,2]
[342523643,1731957035073,-500.0,0.00019741,2]
[342523644,1731957035084,-500.0,0.00019821,2]
[342523645,1731957035095,-500.0,0.00019821,2]
[342523646,1731957035108,-490.64,0.00019821,2]
[342523647,1731957035119,-1107.84,0.00019821,2]
[342523648,1731957035130,-500.0,0.00019821,2]
[342523649,1731957035143,-500.0,0.00019821,2]
[342523650,1731957035155,-1299.15767692,0.00019834,2]
[342523651,1731957035170,-500.0,0.00019873,2]
[342523652,1731957035181,-527.0159269,0.00019873,2]
[342523653,1731957035194,-500.0,0.00019873,2]
[342523654,1731957035205,-500.0,0.00019873,2]
[342523655,1731957035393,-500.0,0.00019882,2]
[342523656,1731957035404,-358.66636341,0.00019882,2]
[342523657,1731957035417,-500.0,0.00019882,2]
[342523658,1731957035428,-595.68,0.00019883,2]
[342523659,1731957035440,-611.39,0.00019883,2]
[342523660,1731957035451,-500.0,0.00019883,2]
[342523661,1731957035461,-500.0,0.00019883,2]
[342523662,1731957035471,-500.0,0.00019883,2]
[342523663,1731957035482,-500.0,0.00019883,2]
[342523664,1731957035492,-500.0,0.00019883,2]
[342523665,1731957035501,-500.0,0.00019883,2]
[342523666,1731957035511,-500.0,0.00019883,2]
[342523667,1731957035521,-538.090901,0.00019883,2]
[342523668,1731957035531,-500.0,0.00019883,2]
[342523669,1731957035541,-500.0,0.00019883,2]
[342523670,1731957035551,-500.0,0.00019883,2]
[342523671,1731957035561,-504.90765904,0.00019883,2]
[342523672,1731957035571,-500.73467541,0.00019883,2]
[342523673,1731957035582,-568.75,0.00019883,2]
[342523674,1731957035591,-500.0,0.00019883,2]
[342523675,1731957035601,-159.16648367,0.00019883,2]
[342523676,1731957035611,-500.0,0.00019883,2]
[342523677,1731957035621,-500.0,0.00019883,2]
[342523678,1731957035631,-500.0,0.00019883,2]
[342523679,1731957035641,-500.0,0.00019883,2]
[342523680,1731957035651,-500.0,0.00019883,2]
[342523681,1731957035661,-500.0,0.00019883,2]
[342523682,1731957035671,-500.0,0.00019883,2]
[342523683,1731957035681,-500.0,0.00019883,2]
[342523684,1731957035691,-500.0,0.00019883,2]
[342523685,1731957035701,-500.0,0.00019883,2]
[342523686,1731957035711,-500.0,0.00019883,2]
[342523687,1731957035721,-500.0,0.00019883,2]
[342523688,1731957035731,-323.67204539,0.00019883,2]
[342523689,1731957035741,-500.0,0.00019883,2]
[342523690,1731957035751,-500.0,0.00019883,2]
[342523691,1731957035761,-509.72254863,0.00019883,2]
[342523692,1731957035770,-500.0,0.00019883,2]
[342523693,1731957035779,-500.0,0.00019883,2]
[342523694,1731957035789,-500.0,0.00019883,2]
[342523695,1731957035799,-500.0,0.00019883,2]
[342523696,1731957035810,-508.15460528,0.00019883,2]
[342523697,1731957035820,-334.17539209,0.00019883,2]
[342523698,1731957035830,-500.0,0.00019883,2]
[342523699,1731957035840,-511.98752116,0.00019883,2]
[342523700,1731957035850,-500.0,0.00019883,2]
[342523701,1731957035860,-598.07043749,0.00019883,2]
[342523702,1731957035869,-500.0,0.00019883,2]
[342523703,1731957035879,-500.0,0.00019883,2]
[342523704,1731957035889,-500.0,0.00019883,2]
[342523705,1731957035900,-500.0,0.00019883,2]
[342523706,1731957035910,-500.0,0.00019883,2]
[342523707,1731957035920,-500.0,0.00019883,2]
[342523708,1731957035930,-535.3054547,0.00019883,2]
[342523709,1731957035942,-500.0,0.00019883,2]
[342523710,1731957035952,-500.0,0.00019883,2]
[342523711,1731957035962,-500.0,0.00019883,2]
[342523712,1731957035972,-520.0946716,0.00019883,2]
[342523713,1731957035982,-500.0,0.00019883,2]
[342523714,1731957035992,-500.0,0.00019883,2]
[342523715,1731957036002,-500.0,0.00019883,2]
[342523716,1731957036013,-500.0,0.00019883,2]
[342523717,1731957036023,-500.0,0.00019883,2]
[342523718,1731957036034,-500.0,0.00019883,2]
[342523719,1731957036044,-500.0,0.00019883,2]
[342523720,1731957036054,-500.0,0.00019883,2]
[342523721,1731957036066,-500.0,0.00019883,2]
[342523722,1731957036076,-500.0,0.00019883,2]
[342523723,1731957036086,-500.0,0.00019883,2]
[342523724,1731957036099,-230.75560438,0.00019883,2]
[342523725,1731957036109,-554.74836184,0.00019883,2]
[342523726,1731957036119,-500.0,0.00019883,2]
[342523727,1731957036131,-500.0,0.00019883,2]
[342523728,1731957036141,-500.0,0.00019883,2]
[342523729,1731957036151,-500.0,0.00019883,2]
[342523730,1731957036161,-500.0,0.00019883,2]
[342523731,1731957036171,-502.02264282,0.00019883,2]
[342523732,1731957036181,-500.01652465,0.00019883,2]
[342523733,1731957036192,-500.0,0.00019883,2]
[342523734,1731957036201,-500.0,0.00019883,2]
[342523735,1731957036211,-500.0,0.00019883,2]
[342523736,1731957036220,-500.0,0.00019883,2]
[342523737,1731957036229,-500.0,0.00019883,2]
[342523738,1731957036239,-500.0,0.00019883,2]
[342523739,1731957036249,-500.0,0.00019883,2]
[342523740,1731957036259,-500.0,0.00019883,2]
[342523741,1731957036269,-500.0,0.00019883,2]
[342523742,1731957036279,-500.0,0.00019883,2]
[342523743,1731957036290,-500.0,0.00019883,2]
[342523744,1731957036299,-523.81625421,0.00019883,2]
[342523745,1731957036310,-519.42305626,0.00019883,2]
[342523746,1731957036320,-500.0,0.00019883,2]
[342523747,1731957036330,-500.0,0.00019883,2]
[342523748,1731957036341,-500.0,0.00019883,2]
[342523749,1731957036351,-500.0,0.00019883,2]
[342523750,1731957036361,-367.99339998,0.00019883,2]
[342523751,1731957036371,-500.0,0.00019883,2]
[342523752,1731957036382,-500.0,0.00019883,2]
[342523753,1731957036391,-500.0,0.00019883,2]
[342523754,1731957036401,-500.0,0.00019883,2]
[342523755,1731957036412,-500.0,0.00019883,2]
[342523756,1731957036421,-500.0,0.00019883,2]
[342523757,1731957036434,-500.0,0.00019883,2]
[342523758,1731957036447,-500.0,0.00019883,2]
[342523759,1731957036459,-500.0,0.00019883,2]
[342523760,1731957036468,-500.0,0.00019883,2]
[342523761,1731957036477,-500.0,0.00019883,2]
[342523762,1731957036487,-500.0,0.00019883,2]
[342523763,1731957036498,-510.40503672,0.00019883,2]
[342523764,1731957036508,-500.0,0.00019883,2]
[342523765,1731957036518,-500.0,0.00019883,2]
[342523766,1731957036528,-500.0,0.00019883,2]
[342523767,1731957036538,-500.0,0.00019883,2]
[342523768,1731957036548,-500.0,0.00019883,2]
[342523769,1731957036557,-594.53794202,0.00019883,2]
[342523770,1731957036567,-500.0,0.00019883,2]
[342523771,1731957036577,-500.0,0.00019883,2]
[342523772,1731957036587,-435.16854548,0.00019883,2]